[Event "Titled Tuesday Blitz January 18 2022"]
[White "Omariev, Maksim"]
[Black "Zeynalli, Rashad"]
[WhiteFideId "4193423"]
[BlackFideId "13403320"]
[WhiteElo "2494"]
[BlackElo "2125"]
[Result "1-0"]
[Round "11"]
[TimeControl "180+1"]
[Date "2022.01.18"]
[WhiteClock "0:00:06"]
[BlackClock "0:00:08"]

1. g4 {[%clk 0:03:00]}  d5 {[%clk 0:02:57]} 2. Bg2 {[%clk 0:03:00]}  e6 {[%clk 0:02:57]} 3. d4 {[%clk 0:03:00]}  c5 {[%clk 0:02:55]} 4. c3 {[%clk 0:03:00]}  Nc6 {[%clk 0:02:56]} 5. Nf3 {[%clk 0:03:01]}  Bd6 {[%clk 0:02:55]} 6. g5 {[%clk 0:03:01]}  Nge7 {[%clk 0:02:54]} 7. h4 {[%clk 0:03:01]}  Ng6 {[%clk 0:02:54]} 8. h5 {[%clk 0:03:01]}  Nf4 {[%clk 0:02:55]} 9. Bxf4 {[%clk 0:03:01]}  Bxf4 {[%clk 0:02:56]} 10. dxc5 {[%clk 0:03:01]}  Bxg5 {[%clk 0:02:52]} 11. Nxg5 {[%clk 0:02:57]}  Qxg5 {[%clk 0:02:53]} 12. Bf3 {[%clk 0:02:44]}  a5 {[%clk 0:02:51]} 13. Nd2 {[%clk 0:02:43]}  Qe7 {[%clk 0:02:51]} 14. c4 {[%clk 0:02:36]}  Qxc5 {[%clk 0:02:38]} 15. cxd5 {[%clk 0:02:35]}  exd5 {[%clk 0:02:38]} 16. Rc1 {[%clk 0:02:35]}  Qd4 {[%clk 0:02:31]} 17. Qb3 {[%clk 0:02:27]}  O-O {[%clk 0:02:21]} 18. h6 {[%clk 0:02:23]}  g6 {[%clk 0:02:09]} 19. Bxd5 {[%clk 0:02:20]}  a4 {[%clk 0:02:06]} 20. Qc3 {[%clk 0:02:15]}  Qxc3 {[%clk 0:01:50]} 21. Rxc3 {[%clk 0:02:15]}  Nb4 {[%clk 0:01:44]} 22. Bc4 {[%clk 0:02:15]}  Be6 {[%clk 0:01:35]} 23. a3 {[%clk 0:02:15]}  Nd5 {[%clk 0:01:34]} 24. Rd3 {[%clk 0:02:08]}  Rac8 {[%clk 0:01:30]} 25. O-O {[%clk 0:01:07]}  Nf4 {[%clk 0:01:28]} 26. Rd4 {[%clk 0:01:07]}  Rxc4 {[%clk 0:00:41]} 27. Rxc4 {[%clk 0:00:53]}  Nxe2+ {[%clk 0:00:40]} 28. Kg2 {[%clk 0:00:50]}  Rd8 {[%clk 0:00:30]} 29. Rxa4 {[%clk 0:00:37]}  b5 {[%clk 0:00:22]} 30. Ra5 {[%clk 0:00:22]}  Nf4+ {[%clk 0:00:22]} 31. Kf3 {[%clk 0:00:18]}  g5 {[%clk 0:00:20]} 32. Nb1 {[%clk 0:00:08]}  Bf5 {[%clk 0:00:14]} 33. Kg3 {[%clk 0:00:03]}  Ne2+ {[%clk 0:00:13]} 34. Kg2 {[%clk 0:00:02]}  Nf4+ {[%clk 0:00:12]} 35. Kh2 {[%clk 0:00:03]}  Be4 {[%clk 0:00:11]} 36. Nc3 {[%clk 0:00:02]}  Bc6 {[%clk 0:00:10]} 37. Ra6 {[%clk 0:00:02]}  Bb7 {[%clk 0:00:08]} 38. Rb6 {[%clk 0:00:02]}  Bf3 {[%clk 0:00:08]} 39. Re1 {[%clk 0:00:02]}  Ng6 {[%clk 0:00:06]} 40. Rxb5 {[%clk 0:00:02]}  Rd2 {[%clk 0:00:05]} 41. Kg3 {[%clk 0:00:02]}  Bc6 {[%clk 0:00:03]} 42. Rb8+ {[%clk 0:00:01]}  Nf8 {[%clk 0:00:04]} 43. b4 {[%clk 0:00:01]}  Rd3+ {[%clk 0:00:03]} 44. Re3 {[%clk 0:00:02]}  Rxc3 {[%clk 0:00:04]} 45. Rxc3 {[%clk 0:00:02]}  f5 {[%clk 0:00:04]} 46. Rxc6 {[%clk 0:00:02]}  f4+ {[%clk 0:00:05]} 47. Kg4 {[%clk 0:00:03]}  Kf7 {[%clk 0:00:05]} 48. Rc7+ {[%clk 0:00:03]}  Ke6 {[%clk 0:00:05]} 49. Rxf8 {[%clk 0:00:04]}  Kd6 {[%clk 0:00:05]} 50. Rxh7 {[%clk 0:00:04]}  Kd5 {[%clk 0:00:06]} 51. Rf5+ {[%clk 0:00:05]}  Ke4 {[%clk 0:00:06]} 52. Rxg5 {[%clk 0:00:05]}  Kd3 {[%clk 0:00:07]} 53. Rf7 {[%clk 0:00:05]}  Ke2 {[%clk 0:00:08]} 54. Rxf4 {[%clk 0:00:06]} 1-0


[Site "https://www.chess.com"]

[Event "Titled Tuesday Blitz January 18 2022"]
[White "Oparin, Grigoriy"]
[Black "Seo, Jung Min"]
[WhiteFideId "24125890"]
[BlackFideId "1734687"]
[WhiteElo "2685"]
[BlackElo "2401"]
[Result "0-1"]
[Round "11"]
[TimeControl "180+1"]
[Date "2022.01.18"]
[WhiteClock "0:01:20"]
[BlackClock "0:01:16"]

1. c4 {[%clk 0:03:00]}  Nf6 {[%clk 0:03:00]} 2. Nc3 {[%clk 0:03:01]}  e6 {[%clk 0:03:00]} 3. g3 {[%clk 0:03:00]}  d5 {[%clk 0:03:00]} 4. cxd5 {[%clk 0:02:58]}  exd5 {[%clk 0:03:00]} 5. Bg2 {[%clk 0:02:58]}  d4 {[%clk 0:02:58]} 6. Ne4 {[%clk 0:02:56]}  Nxe4 {[%clk 0:02:58]} 7. Bxe4 {[%clk 0:02:57]}  c5 {[%clk 0:02:58]} 8. Bg2 {[%clk 0:02:51]}  Bd6 {[%clk 0:02:57]} 9. d3 {[%clk 0:02:49]}  O-O {[%clk 0:02:57]} 10. Nf3 {[%clk 0:02:49]}  Re8 {[%clk 0:02:57]} 11. O-O {[%clk 0:02:50]}  Qe7 {[%clk 0:02:56]} 12. Re1 {[%clk 0:02:49]}  Nc6 {[%clk 0:02:56]} 13. Bg5 {[%clk 0:02:45]}  f6 {[%clk 0:02:54]} 14. Bd2 {[%clk 0:02:45]}  Qf7 {[%clk 0:02:53]} 15. a3 {[%clk 0:02:44]}  a5 {[%clk 0:02:50]} 16. e4 {[%clk 0:02:42]}  dxe3 {[%clk 0:02:50]} 17. Bxe3 {[%clk 0:02:41]}  Be6 {[%clk 0:02:41]} 18. Nd2 {[%clk 0:02:42]}  Rac8 {[%clk 0:02:33]} 19. Nc4 {[%clk 0:02:41]}  Bf8 {[%clk 0:02:28]} 20. Nb6 {[%clk 0:02:34]}  Rcd8 {[%clk 0:02:27]} 21. Rc1 {[%clk 0:02:34]}  Ne5 {[%clk 0:02:22]} 22. Rc3 {[%clk 0:02:18]}  Bg4 {[%clk 0:02:14]} 23. f3 {[%clk 0:02:14]}  Bf5 {[%clk 0:02:12]} 24. Bf1 {[%clk 0:02:13]}  Qc7 {[%clk 0:02:07]} 25. Nc4 {[%clk 0:02:05]}  Nxc4 {[%clk 0:02:03]} 26. Rxc4 {[%clk 0:02:06]}  b6 {[%clk 0:02:01]} 27. Bf2 {[%clk 0:01:58]}  Rxe1 {[%clk 0:02:00]} 28. Qxe1 {[%clk 0:01:59]}  Bxd3 {[%clk 0:01:53]} 29. Bxd3 {[%clk 0:01:58]}  Rxd3 {[%clk 0:01:53]} 30. Qe4 {[%clk 0:01:53]}  Qd7 {[%clk 0:01:50]} 31. Rc2 {[%clk 0:01:51]}  Qd5 {[%clk 0:01:49]} 32. Qxd5+ {[%clk 0:01:48]}  Rxd5 {[%clk 0:01:48]} 33. Kf1 {[%clk 0:01:47]}  a4 {[%clk 0:01:45]} 34. Ke2 {[%clk 0:01:46]}  Kf7 {[%clk 0:01:45]} 35. Rc3 {[%clk 0:01:36]}  b5 {[%clk 0:01:42]} 36. h4 {[%clk 0:01:32]}  h5 {[%clk 0:01:39]} 37. g4 {[%clk 0:01:32]}  g6 {[%clk 0:01:36]} 38. Rc1 {[%clk 0:01:32]}  Be7 {[%clk 0:01:34]} 39. Be3 {[%clk 0:01:28]}  f5 {[%clk 0:01:22]} 40. gxh5 {[%clk 0:01:27]}  gxh5 {[%clk 0:01:22]} 41. Bg5 {[%clk 0:01:26]}  Bxg5 {[%clk 0:01:21]} 42. hxg5 {[%clk 0:01:27]}  f4 {[%clk 0:01:21]} 43. Rh1 {[%clk 0:01:22]}  Kg6 {[%clk 0:01:21]} 44. Rh2 {[%clk 0:01:20]}  Rxg5 {[%clk 0:01:17]} 45. Rxh5 {[%clk 0:01:20]}  Rxh5 {[%clk 0:01:16]} 0-1


[Site "https://www.chess.com"]

[Event "Titled Tuesday Blitz January 18 2022"]
[White "Ozates, Tuna"]
[Black "Avazkhonov, Alikhon"]
[WhiteFideId "6354521"]
[BlackFideId "14208504"]
[WhiteElo "1872"]
[BlackElo "1739"]
[Result "0-1"]
[Round "11"]
[TimeControl "180+1"]
[Date "2022.01.18"]
[WhiteClock "0:00:03"]
[BlackClock "0:00:04"]

1. e4 {[%clk 0:03:00]}  c6 {[%clk 0:02:58]} 2. d4 {[%clk 0:02:59]}  d5 {[%clk 0:02:58]} 3. exd5 {[%clk 0:03:00]}  cxd5 {[%clk 0:02:58]} 4. c4 {[%clk 0:03:01]}  Nc6 {[%clk 0:02:53]} 5. Nf3 {[%clk 0:02:58]}  Nf6 {[%clk 0:02:53]} 6. Nc3 {[%clk 0:02:57]}  g6 {[%clk 0:02:51]} 7. cxd5 {[%clk 0:02:53]}  Nxd5 {[%clk 0:02:50]} 8. Bc4 {[%clk 0:02:54]}  Nxc3 {[%clk 0:02:42]} 9. Qb3 {[%clk 0:02:52]}  Nd5 {[%clk 0:02:19]} 10. Bxd5 {[%clk 0:02:51]}  e6 {[%clk 0:02:19]} 11. Bxc6+ {[%clk 0:02:43]}  bxc6 {[%clk 0:02:19]} 12. O-O {[%clk 0:02:43]}  Qd5 {[%clk 0:02:08]} 13. Qc3 {[%clk 0:02:38]}  Bg7 {[%clk 0:02:03]} 14. Be3 {[%clk 0:02:36]}  O-O {[%clk 0:01:55]} 15. Rfc1 {[%clk 0:02:34]}  Bb7 {[%clk 0:01:31]} 16. Qc5 {[%clk 0:02:33]}  Qxc5 {[%clk 0:01:28]} 17. Rxc5 {[%clk 0:02:33]}  Rfd8 {[%clk 0:01:29]} 18. Rac1 {[%clk 0:02:31]}  Rac8 {[%clk 0:01:22]} 19. Ne5 {[%clk 0:02:12]}  Bxe5 {[%clk 0:00:59]} 20. dxe5 {[%clk 0:02:04]}  a6 {[%clk 0:00:57]} 21. Bg5 {[%clk 0:02:03]}  Rd5 {[%clk 0:00:55]} 22. Bf6 {[%clk 0:02:02]}  Kf8 {[%clk 0:00:35]} 23. h4 {[%clk 0:02:02]}  h5 {[%clk 0:00:33]} 24. g4 {[%clk 0:01:52]}  hxg4 {[%clk 0:00:23]} 25. Kg2 {[%clk 0:01:52]}  Ke8 {[%clk 0:00:15]} 26. Kg3 {[%clk 0:01:50]}  Kd7 {[%clk 0:00:15]} 27. Kxg4 {[%clk 0:01:50]}  Rd4+ {[%clk 0:00:11]} 28. f4 {[%clk 0:01:49]}  Rd2 {[%clk 0:00:10]} 29. R1c2 {[%clk 0:01:46]}  Rxc2 {[%clk 0:00:10]} 30. Rxc2 {[%clk 0:01:47]}  c5 {[%clk 0:00:11]} 31. Rd2+ {[%clk 0:01:46]}  Bd5 {[%clk 0:00:10]} 32. Kg5 {[%clk 0:01:44]}  Kc6 {[%clk 0:00:09]} 33. Kh6 {[%clk 0:01:43]}  Bxa2 {[%clk 0:00:07]} 34. Kg7 {[%clk 0:01:41]}  Rc7 {[%clk 0:00:05]} 35. Rd8 {[%clk 0:01:38]}  Bd5 {[%clk 0:00:05]} 36. Kf8 {[%clk 0:01:20]}  Be4 {[%clk 0:00:04]} 37. Be7 {[%clk 0:01:17]}  Bf5 {[%clk 0:00:04]} 38. Kxf7 {[%clk 0:01:16]}  c4 {[%clk 0:00:03]} 39. Kf6 {[%clk 0:01:06]}  Rd7 {[%clk 0:00:03]} 40. Rc8+ {[%clk 0:01:05]}  Kd5 {[%clk 0:00:03]} 41. Ra8 {[%clk 0:01:01]}  Rb7 {[%clk 0:00:03]} 42. Rxa6 {[%clk 0:00:58]}  Rxb2 {[%clk 0:00:03]} 43. Rd6+ {[%clk 0:00:56]}  Ke4 {[%clk 0:00:03]} 44. Rc6 {[%clk 0:00:52]}  Kd5 {[%clk 0:00:01]} 45. Rc8 {[%clk 0:00:51]}  Rc2 {[%clk 0:00:01]} 46. Bb4 {[%clk 0:00:50]}  Ke4 {[%clk 0:00:01]} 47. Kg5 {[%clk 0:00:37]}  Rg2+ {[%clk 0:00:01]} 48. Kf6 {[%clk 0:00:37]}  Rc2 {[%clk 0:00:01]} 49. Rd8 {[%clk 0:00:19]}  c3 {[%clk 0:00:01]} 50. Rc8 {[%clk 0:00:18]}  Kd3 {[%clk 0:00:01]} 51. Rc6 {[%clk 0:00:13]}  Rc1 {[%clk 0:00:01]} 52. Rxe6 {[%clk 0:00:12]}  Bxe6 {[%clk 0:00:01]} 53. Kxe6 {[%clk 0:00:13]}  c2 {[%clk 0:00:01]} 54. Ba3 {[%clk 0:00:12]}  Rb1 {[%clk 0:00:02]} 55. Kf6 {[%clk 0:00:10]}  Rb3 {[%clk 0:00:03]} 56. Bc1 {[%clk 0:00:10]}  Rb1 {[%clk 0:00:02]} 57. Ba3 {[%clk 0:00:08]}  Kd2 {[%clk 0:00:03]} 58. e6 {[%clk 0:00:06]}  Rb3 {[%clk 0:00:03]} 59. e7 {[%clk 0:00:05]}  Rxa3 {[%clk 0:00:03]} 60. e8=Q {[%clk 0:00:06]}  c1=Q {[%clk 0:00:03]} 61. Qd7+ {[%clk 0:00:02]}  Rd3 {[%clk 0:00:04]} 62. Qe7 {[%clk 0:00:02]}  Qc3+ {[%clk 0:00:04]} 63. Qe5 {[%clk 0:00:03]}  Rg3 {[%clk 0:00:02]} 64. Qxc3+ {[%clk 0:00:02]}  Kxc3 {[%clk 0:00:02]} 65. f5 {[%clk 0:00:03]}  gxf5 {[%clk 0:00:02]} 66. Kxf5 {[%clk 0:00:04]}  Kd4 {[%clk 0:00:02]} 67. h5 {[%clk 0:00:04]}  Rh3 {[%clk 0:00:03]} 68. Kg6 {[%clk 0:00:04]}  Ke5 {[%clk 0:00:03]} 69. h6 {[%clk 0:00:05]}  Ke6 {[%clk 0:00:04]} 70. h7 {[%clk 0:00:04]}  Rg3+ {[%clk 0:00:04]} 71. Kh6 {[%clk 0:00:03]}  Kf7 {[%clk 0:00:04]} 0-1


[Site "https://www.chess.com"]

[Event "Titled Tuesday Blitz January 18 2022"]
[White "Papp, Petra"]
[Black "Chernov, Mikhail"]
[WhiteFideId "739049"]
[BlackFideId "24143170"]
[WhiteElo "2259"]
[BlackElo "2244"]
[Result "0-1"]
[Round "11"]
[TimeControl "180+1"]
[Date "2022.01.18"]
[WhiteClock "0:00:37"]
[BlackClock "0:00:07"]

1. d4 {[%clk 0:03:00]}  d5 {[%clk 0:02:59]} 2. c4 {[%clk 0:02:59]}  c6 {[%clk 0:02:59]} 3. Nf3 {[%clk 0:02:58]}  Nf6 {[%clk 0:02:59]} 4. Qb3 {[%clk 0:02:58]}  dxc4 {[%clk 0:02:59]} 5. Qxc4 {[%clk 0:02:57]}  b5 {[%clk 0:03:00]} 6. Qb3 {[%clk 0:02:53]}  Bb7 {[%clk 0:02:59]} 7. g3 {[%clk 0:02:53]}  Nbd7 {[%clk 0:02:58]} 8. Bg2 {[%clk 0:02:53]}  e6 {[%clk 0:02:59]} 9. O-O {[%clk 0:02:53]}  Be7 {[%clk 0:02:58]} 10. Nc3 {[%clk 0:02:51]}  O-O {[%clk 0:02:58]} 11. e4 {[%clk 0:02:52]}  a6 {[%clk 0:02:35]} 12. a4 {[%clk 0:02:46]}  b4 {[%clk 0:02:33]} 13. e5 {[%clk 0:02:46]}  Nd5 {[%clk 0:02:32]} 14. Ne4 {[%clk 0:02:40]}  c5 {[%clk 0:02:31]} 15. dxc5 {[%clk 0:02:35]}  Nxc5 {[%clk 0:02:32]} 16. Nxc5 {[%clk 0:02:34]}  Bxc5 {[%clk 0:02:33]} 17. Bg5 {[%clk 0:02:31]}  Qb6 {[%clk 0:02:18]} 18. a5 {[%clk 0:02:30]}  Qb5 {[%clk 0:02:18]} 19. Rfc1 {[%clk 0:02:29]}  Rac8 {[%clk 0:02:11]} 20. Bf1 {[%clk 0:02:12]}  Qc6 {[%clk 0:02:01]} 21. Rxc5 {[%clk 0:01:45]}  Qxc5 {[%clk 0:01:58]} 22. Rc1 {[%clk 0:01:44]}  Qxa5 {[%clk 0:01:43]} 23. Rd1 {[%clk 0:01:35]}  h6 {[%clk 0:01:28]} 24. Bh4 {[%clk 0:01:22]}  Qc5 {[%clk 0:00:52]} 25. Rd4 {[%clk 0:01:19]}  a5 {[%clk 0:00:35]} 26. Rc4 {[%clk 0:01:11]}  Qb6 {[%clk 0:00:30]} 27. Rg4 {[%clk 0:01:10]}  Rc1 {[%clk 0:00:21]} 28. Bf6 {[%clk 0:01:04]}  g6 {[%clk 0:00:20]} 29. Qd3 {[%clk 0:01:01]}  Rxf1+ {[%clk 0:00:11]} 30. Qxf1 {[%clk 0:00:57]}  Nxf6 {[%clk 0:00:12]} 31. exf6 {[%clk 0:00:51]}  Bxf3 {[%clk 0:00:12]} 32. Rh4 {[%clk 0:00:52]}  Rd8 {[%clk 0:00:07]} 33. Rxh6 {[%clk 0:00:37]}  Rd1 {[%clk 0:00:07]} 0-1


[Site "https://www.chess.com"]

[Event "Titled Tuesday Blitz January 18 2022"]
[White "Perez Gormaz, Matias"]
[Black "Jobava, Baadur"]
[WhiteFideId "3406342"]
[BlackFideId "13601520"]
[WhiteElo "2352"]
[BlackElo "2617"]
[Result "0-1"]
[Round "11"]
[TimeControl "180+1"]
[Date "2022.01.18"]
[WhiteClock "0:00:01"]
[BlackClock "0:01:47"]

1. e4 {[%clk 0:03:00]}  c6 {[%clk 0:02:59]} 2. d4 {[%clk 0:02:52]}  d5 {[%clk 0:03:00]} 3. e5 {[%clk 0:02:52]}  Bf5 {[%clk 0:03:00]} 4. h4 {[%clk 0:02:53]}  Qc7 {[%clk 0:03:00]} 5. g4 {[%clk 0:02:50]}  Bd7 {[%clk 0:02:56]} 6. c3 {[%clk 0:02:40]}  c5 {[%clk 0:02:55]} 7. Be3 {[%clk 0:02:40]}  Nc6 {[%clk 0:02:55]} 8. Na3 {[%clk 0:02:37]}  a6 {[%clk 0:02:54]} 9. Nc2 {[%clk 0:02:36]}  e6 {[%clk 0:02:53]} 10. h5 {[%clk 0:02:31]}  cxd4 {[%clk 0:02:46]} 11. cxd4 {[%clk 0:02:31]}  Rc8 {[%clk 0:02:46]} 12. a3 {[%clk 0:01:59]}  Nxe5 {[%clk 0:02:08]} 13. dxe5 {[%clk 0:01:57]}  Qxc2 {[%clk 0:02:08]} 14. Qxc2 {[%clk 0:01:45]}  Rxc2 {[%clk 0:02:09]} 15. Bd4 {[%clk 0:01:46]}  Ne7 {[%clk 0:02:07]} 16. Bd3 {[%clk 0:01:45]}  Rc8 {[%clk 0:02:07]} 17. Nf3 {[%clk 0:01:39]}  Nc6 {[%clk 0:02:08]} 18. Be3 {[%clk 0:01:38]}  Be7 {[%clk 0:02:05]} 19. h6 {[%clk 0:01:33]}  g6 {[%clk 0:02:06]} 20. Rc1 {[%clk 0:01:28]}  f6 {[%clk 0:02:04]} 21. exf6 {[%clk 0:00:51]}  Bxf6 {[%clk 0:02:05]} 22. Ng5 {[%clk 0:00:52]}  Bxb2 {[%clk 0:02:03]} 23. Rc2 {[%clk 0:00:51]}  Bxa3 {[%clk 0:02:03]} 24. Nxh7 {[%clk 0:00:51]}  Ne5 {[%clk 0:01:56]} 25. Rxc8+ {[%clk 0:00:41]}  Bxc8 {[%clk 0:01:57]} 26. Bb1 {[%clk 0:00:34]}  Rxh7 {[%clk 0:01:56]} 27. f4 {[%clk 0:00:34]}  Nxg4 {[%clk 0:01:48]} 28. Bxg6+ {[%clk 0:00:34]}  Ke7 {[%clk 0:01:49]} 29. Bxh7 {[%clk 0:00:33]}  Nxe3 {[%clk 0:01:49]} 30. Bd3 {[%clk 0:00:30]}  Ng2+ {[%clk 0:01:49]} 31. Kd2 {[%clk 0:00:25]}  Nxf4 {[%clk 0:01:50]} 32. h7 {[%clk 0:00:17]}  Bb2 {[%clk 0:01:50]} 33. h8=Q {[%clk 0:00:16]}  Bxh8 {[%clk 0:01:49]} 34. Rxh8 {[%clk 0:00:17]}  Bd7 {[%clk 0:01:50]} 35. Bf1 {[%clk 0:00:17]}  Kd6 {[%clk 0:01:50]} 36. Ke3 {[%clk 0:00:17]}  e5 {[%clk 0:01:50]} 37. Rh6+ {[%clk 0:00:17]}  Be6 {[%clk 0:01:51]} 38. Rh8 {[%clk 0:00:15]}  d4+ {[%clk 0:01:51]} 39. Kd2 {[%clk 0:00:12]}  e4 {[%clk 0:01:50]} 40. Ra8 {[%clk 0:00:10]}  e3+ {[%clk 0:01:50]} 41. Ke1 {[%clk 0:00:10]}  Ke5 {[%clk 0:01:49]} 42. Rd8 {[%clk 0:00:06]}  a5 {[%clk 0:01:49]} 43. Ra8 {[%clk 0:00:06]}  b6 {[%clk 0:01:48]} 44. Rb8 {[%clk 0:00:04]}  d3 {[%clk 0:01:48]} 45. Bxd3 {[%clk 0:00:02]}  Nxd3+ {[%clk 0:01:49]} 46. Ke2 {[%clk 0:00:03]}  Ke4 {[%clk 0:01:48]} 47. Rxb6 {[%clk 0:00:01]}  Nf4+ {[%clk 0:01:49]} 48. Kf1 {[%clk 0:00:02]}  Bc4+ {[%clk 0:01:47]} 49. Kg1 {[%clk 0:00:01]}  Kf3 {[%clk 0:01:47]} 0-1


[Site "https://www.chess.com"]

[Event "Titled Tuesday Blitz January 18 2022"]
[White "Pranav, V"]
[Black "Firat, Burak"]
[WhiteFideId "25060783"]
[BlackFideId "6305881"]
[WhiteElo "2349"]
[BlackElo "2419"]
[Result "0-1"]
[Round "11"]
[TimeControl "180+1"]
[Date "2022.01.18"]
[WhiteClock "0:00:02"]
[BlackClock "0:00:18"]

1. e4 {[%clk 0:03:00]}  c5 {[%clk 0:03:00]} 2. Nf3 {[%clk 0:03:01]}  e6 {[%clk 0:03:01]} 3. b3 {[%clk 0:03:01]}  a6 {[%clk 0:02:55]} 4. Bb2 {[%clk 0:03:01]}  Nc6 {[%clk 0:02:56]} 5. g3 {[%clk 0:02:59]}  d6 {[%clk 0:02:53]} 6. d4 {[%clk 0:02:58]}  cxd4 {[%clk 0:02:52]} 7. Nxd4 {[%clk 0:02:59]}  Bd7 {[%clk 0:02:51]} 8. Bg2 {[%clk 0:02:59]}  Nf6 {[%clk 0:02:51]} 9. O-O {[%clk 0:02:59]}  Be7 {[%clk 0:02:52]} 10. c4 {[%clk 0:02:59]}  O-O {[%clk 0:02:53]} 11. Nc3 {[%clk 0:03:00]}  Rc8 {[%clk 0:02:51]} 12. Re1 {[%clk 0:02:59]}  b5 {[%clk 0:02:49]} 13. Nxc6 {[%clk 0:02:30]}  Bxc6 {[%clk 0:02:50]} 14. cxb5 {[%clk 0:02:30]}  axb5 {[%clk 0:02:51]} 15. Qd3 {[%clk 0:02:30]}  b4 {[%clk 0:02:43]} 16. Ne2 {[%clk 0:02:28]}  e5 {[%clk 0:02:38]} 17. h3 {[%clk 0:02:27]}  Qb6 {[%clk 0:02:35]} 18. g4 {[%clk 0:02:23]}  d5 {[%clk 0:02:12]} 19. exd5 {[%clk 0:02:13]}  Nxd5 {[%clk 0:02:09]} 20. Bxd5 {[%clk 0:02:09]}  Rcd8 {[%clk 0:02:07]} 21. Ng3 {[%clk 0:01:05]}  Rxd5 {[%clk 0:02:05]} 22. Qe2 {[%clk 0:01:04]}  Bc5 {[%clk 0:01:42]} 23. Nf5 {[%clk 0:00:54]}  Rfd8 {[%clk 0:01:36]} 24. Bc1 {[%clk 0:00:32]}  g6 {[%clk 0:01:17]} 25. Nh6+ {[%clk 0:00:18]}  Kg7 {[%clk 0:01:17]} 26. g5 {[%clk 0:00:18]}  e4 {[%clk 0:00:48]} 27. Bf4 {[%clk 0:00:12]}  Bb5 {[%clk 0:00:28]} 28. Qxe4 {[%clk 0:00:06]}  Bxf2+ {[%clk 0:00:28]} 29. Kh2 {[%clk 0:00:06]}  Bxe1 {[%clk 0:00:24]} 30. Be5+ {[%clk 0:00:03]}  Kf8 {[%clk 0:00:24]} 31. Rxe1 {[%clk 0:00:03]}  Rd2+ {[%clk 0:00:18]} 32. Kg3 {[%clk 0:00:02]}  Qf2+ {[%clk 0:00:18]} 33. Kg4 {[%clk 0:00:02]}  Bd7+ {[%clk 0:00:18]} 0-1


[Site "https://www.chess.com"]

[Event "Titled Tuesday Blitz January 18 2022"]
[White "Prraneeth Vuppala"]
[Black "Panesar Vedant"]
[WhiteFideId "46622373"]
[BlackFideId "35033018"]
[WhiteElo "1759"]
[BlackElo "1971"]
[Result "0-1"]
[Round "11"]
[TimeControl "180+1"]
[Date "2022.01.18"]
[WhiteClock "0:00:02"]
[BlackClock "0:00:11"]

1. d4 {[%clk 0:02:58]}  Nf6 {[%clk 0:03:00]} 2. c4 {[%clk 0:02:57]}  g6 {[%clk 0:03:00]} 3. Nc3 {[%clk 0:02:56]}  d5 {[%clk 0:03:00]} 4. cxd5 {[%clk 0:02:50]}  Nxd5 {[%clk 0:03:01]} 5. e4 {[%clk 0:02:51]}  Nxc3 {[%clk 0:03:00]} 6. bxc3 {[%clk 0:02:52]}  Bg7 {[%clk 0:03:01]} 7. Bc4 {[%clk 0:02:52]}  c5 {[%clk 0:03:01]} 8. Ne2 {[%clk 0:02:53]}  Nc6 {[%clk 0:03:01]} 9. Be3 {[%clk 0:02:53]}  O-O {[%clk 0:03:02]} 10. O-O {[%clk 0:02:53]}  b6 {[%clk 0:03:02]} 11. dxc5 {[%clk 0:02:50]}  Qc7 {[%clk 0:03:01]} 12. Nd4 {[%clk 0:02:20]}  Ne5 {[%clk 0:02:58]} 13. Be2 {[%clk 0:02:08]}  bxc5 {[%clk 0:02:53]} 14. Nb5 {[%clk 0:01:55]}  Qb8 {[%clk 0:02:52]} 15. Rb1 {[%clk 0:01:52]}  a6 {[%clk 0:02:52]} 16. Na3 {[%clk 0:01:39]}  Qc7 {[%clk 0:02:49]} 17. h3 {[%clk 0:01:27]}  Bb7 {[%clk 0:02:44]} 18. Qc2 {[%clk 0:01:22]}  Rab8 {[%clk 0:01:54]} 19. f4 {[%clk 0:01:18]}  Nd7 {[%clk 0:01:53]} 20. Nc4 {[%clk 0:01:14]}  Bc6 {[%clk 0:01:50]} 21. f5 {[%clk 0:01:04]}  Ne5 {[%clk 0:01:33]} 22. Rxb8 {[%clk 0:00:48]}  Rxb8 {[%clk 0:01:30]} 23. Nxe5 {[%clk 0:00:47]}  Bxe5 {[%clk 0:01:27]} 24. Bxa6 {[%clk 0:00:31]}  Bh2+ {[%clk 0:00:38]} 25. Kh1 {[%clk 0:00:31]}  Qe5 {[%clk 0:00:38]} 26. fxg6 {[%clk 0:00:29]}  hxg6 {[%clk 0:00:36]} 27. Bc4 {[%clk 0:00:27]}  e6 {[%clk 0:00:37]} 28. Qf2 {[%clk 0:00:25]}  Rb7 {[%clk 0:00:30]} 29. Bxe6 {[%clk 0:00:19]}  Qxe6 {[%clk 0:00:24]} 30. Kxh2 {[%clk 0:00:19]}  Bxe4 {[%clk 0:00:20]} 31. Bxc5 {[%clk 0:00:17]}  Qe5+ {[%clk 0:00:20]} 32. Kg1 {[%clk 0:00:16]}  Qf5 {[%clk 0:00:18]} 33. Qxf5 {[%clk 0:00:15]}  Bxf5 {[%clk 0:00:18]} 34. Bd4 {[%clk 0:00:16]}  Rb2 {[%clk 0:00:18]} 35. Ra1 {[%clk 0:00:14]}  Be4 {[%clk 0:00:15]} 36. Bf2 {[%clk 0:00:11]}  Rc2 {[%clk 0:00:13]} 37. a4 {[%clk 0:00:11]}  Bb7 {[%clk 0:00:13]} 38. Ra3 {[%clk 0:00:10]}  Rc1+ {[%clk 0:00:12]} 39. Kh2 {[%clk 0:00:10]}  Rc2 {[%clk 0:00:13]} 40. Kg3 {[%clk 0:00:06]}  g5 {[%clk 0:00:13]} 41. a5 {[%clk 0:00:05]}  Ba6 {[%clk 0:00:13]} 42. Bd4 {[%clk 0:00:04]}  Kh7 {[%clk 0:00:13]} 43. h4 {[%clk 0:00:03]}  gxh4+ {[%clk 0:00:13]} 44. Kxh4 {[%clk 0:00:04]}  Rxg2 {[%clk 0:00:14]} 45. Ra1 {[%clk 0:00:03]}  Rg6 {[%clk 0:00:14]} 46. Rf1 {[%clk 0:00:03]}  Kg8 {[%clk 0:00:13]} 47. Re1 {[%clk 0:00:02]}  Kf8 {[%clk 0:00:13]} 48. Kh5 {[%clk 0:00:02]}  Bb5 {[%clk 0:00:11]} 0-1


[Site "https://www.chess.com"]